bitfinex/quotes_BTCUSD_20250604
["timestamp","ask_amount","ask_price","bid_price","bid_amount"]
[1748995200979,0.0365,105390.0,105380.0,0.19669789]
[1748995204417,0.0365,105390.0,105380.0,0.1758543]
[1748995205479,0.0365,105390.0,105380.0,0.16932]
[1748995205909,0.16693028,105390.0,105380.0,0.08932]
[1748995206122,0.27227278,105390.0,105380.0,0.08932]
[1748995206328,0.30803687,105390.0,105380.0,0.08932]
[1748995206533,0.51809898,105390.0,105380.0,0.08932]
[1748995206744,0.5011427,105390.0,105370.0,0.24632163]
[1748995206925,0.05047757,105380.0,105370.0,0.24632163]
[1748995207138,0.06815657,105380.0,105370.0,0.33564163]
[1748995207342,0.17479926,105380.0,105370.0,0.33564163]
[1748995207552,0.14633178,105380.0,105370.0,0.33564163]
[1748995207763,0.41015241,105380.0,105370.0,0.00048163]
[1748995208175,0.41834062,105380.0,105370.0,0.00048163]
[1748995208383,0.40066331,105380.0,105370.0,0.00048163]
[1748995208589,0.40266331,105380.0,105370.0,0.00048163]
[1748995208729,0.21587398,105380.0,105370.0,0.00048163]
[1748995209175,0.42134052,105380.0,105370.0,0.00048163]
[1748995209401,0.42334052,105380.0,105370.0,0.00048163]
[1748995209814,0.41166331,105380.0,105370.0,0.00048163]
[1748995210011,0.50708629,105380.0,105370.0,0.00048163]
[1748995210229,0.22187362,105380.0,105370.0,0.00048163]
[1748995210429,0.15603152,105380.0,105370.0,0.00048163]
[1748995210646,0.0425,105380.0,105370.0,0.08984163]
[1748995210828,0.0425,105380.0,105370.0,0.09882579]
[1748995210829,0.06017946,105380.0,105370.0,0.09882579]
[1748995211830,0.06017946,105380.0,105370.0,0.00946579]
[1748995212037,0.06017946,105380.0,105370.0,0.08984163]
[1748995215779,0.06017946,105380.0,105370.0,0.00048163]
[1748995215998,0.06017946,105380.0,105370.0,0.08984163]
[1748995219322,0.08866946,105380.0,105370.0,0.08984163]
[1748995220176,0.08866946,105380.0,105370.0,0.00048163]
[1748995220396,0.08866946,105380.0,105370.0,0.08984163]
[1748995221261,0.08866946,105380.0,105370.0,0.09882579]
[1748995221922,0.08866946,105380.0,105370.0,0.08984163]
[1748995226263,0.08866946,105380.0,105370.0,0.00048163]
[1748995226474,0.08866946,105380.0,105370.0,0.08984163]
[1748995230463,0.10635296,105380.0,105370.0,0.08984163]
[1748995230677,0.08866946,105380.0,105370.0,0.08984163]
[1748995231554,0.10635303,105380.0,105370.0,0.08984163]
[1748995231770,0.10635304,105380.0,105370.0,0.08984163]
[1748995231976,0.08866946,105380.0,105370.0,0.08984163]
[1748995232408,0.10635301,105380.0,105370.0,0.08984163]
[1748995232645,0.08866946,105380.0,105370.0,0.08984163]
[1748995233494,0.10635529,105380.0,105370.0,0.08984163]
[1748995233708,0.08866946,105380.0,105370.0,0.08984163]
[1748995233947,0.10635508,105380.0,105370.0,0.08984163]
[1748995234167,0.08866946,105380.0,105370.0,0.08984163]
[1748995234374,0.10635539,105380.0,105370.0,0.08984163]
[1748995234604,0.08866946,105380.0,105370.0,0.08984163]
[1748995234867,0.10635804,105380.0,105370.0,0.08984163]
[1748995235081,0.08866946,105380.0,105370.0,0.08984163]
[1748995235509,0.08866946,105380.0,105370.0,0.12341779]
[1748995236356,0.08866946,105380.0,105370.0,0.08984163]
[1748995236982,0.1063583,105380.0,105370.0,0.08984163]
[1748995237187,0.08866946,105380.0,105370.0,0.08984163]
[1748995237428,0.10635888,105380.0,105370.0,0.08984163]
[1748995237637,0.08866946,105380.0,105370.0,0.08984163]
[1748995237849,0.10635832,105380.0,105370.0,0.08984163]
[1748995238064,0.08866946,105380.0,105370.0,0.08984163]
[1748995239627,0.10635766,105380.0,105370.0,0.08984163]
[1748995239839,0.08866946,105380.0,105370.0,0.08984163]
[1748995240506,0.08866946,105380.0,105370.0,0.08980163]
[1748995240720,0.10635835,105380.0,105370.0,0.08980163]
[1748995240927,0.10635852,105380.0,105370.0,0.08980163]
[1748995241150,0.12404748,105380.0,105370.0,0.08980163]
[1748995241389,0.10635852,105380.0,105370.0,0.08980163]
[1748995241617,0.12404744,105380.0,105370.0,0.08980163]
[1748995241831,0.10635852,105380.0,105370.0,0.08980163]
[1748995242254,0.14173638,105380.0,105370.0,0.08980163]
[1748995242690,0.17711424,105380.0,105370.0,0.08980163]
[1748995242907,0.15942531,105380.0,105370.0,0.08980163]
[1748995243120,0.31912386,105380.0,105370.0,0.08980163]
[1748995243328,0.2824573,105380.0,105370.0,0.08980163]
[1748995243537,0.31783502,105380.0,105370.0,0.08980163]
[1748995243750,0.34501267,105380.0,105370.0,0.08980163]
[1748995243996,0.33681304,105380.0,105370.0,0.08980163]
[1748995244214,0.63441295,105380.0,105370.0,0.08980163]
[1748995244434,0.64390268,105380.0,105370.0,0.00048163]
[1748995244654,0.89891908,105380.0,105370.0,0.08980163]
[1748995244859,0.70912975,105380.0,105370.0,0.08980163]
[1748995245070,0.70913714,105380.0,105370.0,0.08980163]
[1748995245520,1.04913705,105380.0,105370.0,0.08980163]
[1748995245734,1.05862651,105380.0,105370.0,0.08980163]
[1748995246156,0.34,105370.0,105360.0,0.24592]
[1748995246365,0.38898689,105370.0,105360.0,0.33538381]
[1748995246585,0.3713,105370.0,105360.0,0.33538381]
[1748995247231,0.38898693,105370.0,105360.0,0.33538381]
[1748995247439,0.3763,105370.0,105360.0,0.33538381]
[1748995247646,0.3793,105370.0,105360.0,0.33538381]
[1748995248317,0.38878964,105370.0,105360.0,0.33538381]
[1748995248532,0.3793,105370.0,105360.0,0.33538381]
[1748995248744,0.38878964,105370.0,105360.0,0.33538381]
[1748995248962,0.39698683,105370.0,105360.0,0.33538381]
[1748995249174,0.3793,105370.0,105360.0,0.33538381]
[1748995249396,0.407795,105370.0,105360.0,0.33538381]
[1748995249609,0.407795,105370.0,105360.0,0.36892219]
[1748995249818,0.407795,105370.0,105360.0,0.33538381]
[1748995250029,0.067795,105370.0,105360.0,0.33538381]
[1748995251755,0.08548227,105370.0,105360.0,0.33538381]
[1748995251970,0.407795,105370.0,105360.0,0.33538381]
[1748995253233,0.42548228,105370.0,105360.0,0.33538381]
[1748995253427,0.407795,105370.0,105360.0,0.33538381]
[1748995254897,0.42548262,105370.0,105360.0,0.33538381]
[1748995255106,0.407795,105370.0,105360.0,0.33538381]
[1748995255319,0.42677464,105370.0,105360.0,0.33538381]
[1748995255572,0.42677464,105370.0,105360.0,0.33542381]
[1748995255789,0.42677473,105370.0,105360.0,0.33542381]
[1748995255999,0.52262894,105370.0,105360.0,0.33542381]
[1748995256430,0.53211903,105370.0,105360.0,0.33542381]
[1748995256646,0.52262894,105370.0,105360.0,0.33542381]
[1748995257085,0.82022894,105370.0,105360.0,0.33542381]
[1748995257292,0.83791962,105370.0,105360.0,0.33542381]
[1748995257502,0.82022894,105370.0,105360.0,0.33542381]
[1748995257918,0.83791964,105370.0,105360.0,0.33542381]
[1748995258136,0.82022894,105370.0,105360.0,0.33542381]
[1748995258345,0.82971903,105370.0,105360.0,0.33542381]
[1748995258555,0.82022894,105370.0,105360.0,0.33542381]
[1748995258967,0.83791962,105370.0,105360.0,0.33542381]
[1748995259179,0.83920939,105370.0,105360.0,0.33542381]
[1748995259427,0.82022894,105370.0,105360.0,0.33542381]
[1748995260069,0.8760257,105370.0,105360.0,0.33542381]
[1748995260277,0.90320599,105370.0,105360.0,0.33542381]
[1748995260416,0.58791561,105370.0,105360.0,0.00014381]
[1748995260627,0.61508592,105370.0,105360.0,0.00014381]
[1748995260837,0.58790543,105370.0,105360.0,0.00014381]
[1748995261244,0.60559584,105370.0,105360.0,0.00014381]
[1748995261470,0.58790543,105370.0,105360.0,0.00014381]
[1748995261870,0.57841552,105370.0,105360.0,0.00014381]
[1748995262085,0.58790534,105370.0,105360.0,0.00014381]
[1748995262252,0.57841552,105370.0,105360.0,0.00014381]
[1748995262649,0.56892579,105370.0,105360.0,0.00014381]
[1748995262853,0.57841543,105370.0,105360.0,0.00014381]
[1748995263060,0.58789151,105370.0,105360.0,0.00014381]
[1748995263271,0.51313894,105370.0,105360.0,0.00014381]
[1748995263483,0.51313885,105370.0,105360.0,0.00014381]
[1748995264111,0.53082821,105370.0,105360.0,0.00014381]
[1748995264320,0.52262849,105370.0,105360.0,0.00014381]
[1748995264527,0.53211822,105370.0,105360.0,0.00014381]
[1748995264743,0.52133872,105370.0,105360.0,0.00014381]
[1748995264954,0.51313885,105370.0,105360.0,0.00014381]
[1748995265998,0.81073885,105370.0,105360.0,0.00014381]
[1748995266649,0.81073894,105370.0,105360.0,0.00014381]
[1748995267039,0.8012493,105370.0,105360.0,0.00014381]
[1748995267315,0.8012493,105370.0,105360.0,0.32370381]
[1748995267316,0.008,105370.0,105360.0,0.32370381]
[1748995267538,0.008,105370.0,105360.0,0.46110178]
[1748995267539,0.02569223,105370.0,105360.0,0.46110178]
[1748995267766,0.008,105370.0,105360.0,0.47019156]
[1748995267986,0.14150198,105380.0,105360.0,0.45313241]
[1748995268208,0.14150198,105380.0,105370.0,0.79948688]
[1748995268435,0.14150198,105380.0,105370.0,0.82797686]
[1748995268436,0.13070198,105380.0,105370.0,0.82797686]
[1748995268653,0.03535865,105400.0,105370.0,0.79540295]
[1748995268869,0.03535865,105400.0,105390.0,0.0958543]
[1748995269079,0.03535865,105400.0,105390.0,0.4681821]
[1748995269265,0.03535865,105400.0,105390.0,0.4922821]
[1748995270421,0.03535865,105400.0,105390.0,0.50682295]
[1748995270652,0.03535865,105400.0,105390.0,0.5067902]
[1748995271124,0.03535865,105400.0,105390.0,0.5137902]
[1748995271354,0.03635865,105400.0,105390.0,0.5137902]
[1748995272932,0.03635865,105400.0,105390.0,0.49924935]
[1748995274231,0.03635865,105400.0,105390.0,0.4901943]
[1748995274446,0.03635865,105400.0,105390.0,0.49922062]
[1748995274930,0.03635865,105400.0,105390.0,0.7754343]
[1748995275146,0.03635865,105400.0,105390.0,0.4002343]
[1748995275360,0.03635865,105400.0,105390.0,0.7831143]
[1748995276447,0.03635865,105400.0,105390.0,0.3926343]
[1748995276665,0.03635865,105400.0,105390.0,0.7756743]
[1748995277099,0.03635865,105400.0,105390.0,0.4825543]
[1748995277315,0.03635865,105400.0,105390.0,0.7592143]
[1748995278595,0.03635865,105400.0,105390.0,0.3761343]
[1748995278811,0.03635865,105400.0,105390.0,0.7592543]
[1748995280579,0.03635865,105400.0,105390.0,0.7822543]
[1748995282979,0.03635865,105400.0,105390.0,0.3761343]
[1748995283199,0.05235865,105400.0,105390.0,0.4660143]
[1748995283412,0.05235865,105400.0,105390.0,0.7594143]
[1748995283413,0.06875865,105400.0,105390.0,0.7594143]
[1748995284328,0.06875865,105400.0,105390.0,0.7554143]
[1748995284537,0.06775865,105400.0,105390.0,0.7554143]
[1748995284745,0.06875865,105400.0,105390.0,0.7574143]
[1748995286301,0.06875865,105400.0,105390.0,0.7572943]
[1748995286960,0.05235865,105400.0,105390.0,0.7572943]
[1748995287601,0.06795865,105400.0,105390.0,0.7572943]
[1748995289816,0.06795865,105400.0,105390.0,0.4840143]
[1748995290289,0.06795865,105400.0,105390.0,0.1907343]
[1748995290536,0.06795865,105400.0,105390.0,0.4839343]
[1748995292230,0.06795865,105400.0,105390.0,0.1006543]
[1748995292443,0.06795865,105400.0,105390.0,0.4836143]
[1748995292869,0.06795865,105400.0,105390.0,0.1905343]
[1748995294827,0.06795865,105400.0,105390.0,0.09488]
[1748995295909,0.17359989,105400.0,105390.0,0.08988]
[1748995296127,0.06825865,105400.0,105390.0,0.08988]
[1748995296363,0.07774568,105400.0,105390.0,0.08988]
[1748995296577,0.0862328,105400.0,105390.0,0.08988]
[1748995296792,0.0862328,105400.0,105390.0,0.09188]
[1748995296793,0.0872328,105400.0,105390.0,0.09188]
[1748995297430,0.09543071,105400.0,105390.0,0.09188]
[1748995297678,0.09543075,105400.0,105390.0,0.09188]
[1748995297896,0.08723271,105400.0,105390.0,0.09188]
[1748995298106,0.10491779,105400.0,105390.0,0.09188]
[1748995298334,0.08723262,105400.0,105390.0,0.09188]
[1748995300527,0.06825865,105400.0,105390.0,0.09188]
[1748995300737,0.07774559,105400.0,105390.0,0.09188]
[1748995300923,0.08723271,105400.0,105390.0,0.09188]
[1748995301388,0.10492028,105400.0,105390.0,0.09188]
[1748995301627,0.40252072,105400.0,105390.0,0.09188]
[1748995301840,0.37534559,105400.0,105390.0,0.09188]
[1748995302063,0.40252063,105400.0,105390.0,0.09188]
[1748995303168,0.41200784,105400.0,105390.0,0.09188]
[1748995303382,0.40252063,105400.0,105390.0,0.09188]
[1748995304778,0.3930336,105400.0,105390.0,0.09188]
[1748995304995,0.38354666,105400.0,105390.0,0.09188]
[1748995306310,0.72354666,105400.0,105390.0,0.09188]
[1748995306749,0.38354666,105400.0,105390.0,0.1877343]
[1748995306961,0.35164666,105400.0,105390.0,0.1877343]
[1748995307178,0.35164666,105400.0,105390.0,0.4812543]
[1748995307408,0.05404666,105400.0,105390.0,0.4971543]
[1748995307631,0.05404666,105400.0,105390.0,0.51382535]
[1748995308684,0.05404666,105400.0,105390.0,0.50622668]
[1748995308885,0.05404666,105400.0,105390.0,0.49032668]
[1748995309297,0.05404666,105400.0,105390.0,0.49056668]
[1748995309706,0.05404666,105400.0,105390.0,0.4814943]
[1748995309899,0.05404666,105400.0,105390.0,0.49056849]
[1748995310334,0.05404666,105400.0,105390.0,0.4814943]
[1748995311403,0.05404666,105400.0,105390.0,0.49056974]
[1748995311655,0.05404666,105400.0,105390.0,0.49057115]
[1748995312710,0.05404666,105400.0,105390.0,0.4814943]
[1748995312958,0.05404666,105400.0,105390.0,0.49057277]
[1748995316584,0.05404666,105400.0,105390.0,0.49057227]
[1748995318353,0.06984666,105400.0,105390.0,0.49057227]
[1748995320276,0.06984666,105400.0,105390.0,0.4814943]
[1748995320507,0.06984666,105400.0,105390.0,0.49057181]
[1748995322125,0.05404666,105400.0,105390.0,0.49057181]
[1748995322814,0.05404666,105400.0,105390.0,0.51397037]
[1748995323220,0.05404666,105400.0,105390.0,0.50637037]
[1748995323883,0.05394024,105400.0,105390.0,0.58637037]
[1748995324116,0.05394024,105400.0,105390.0,0.59397037]
[1748995325065,0.05394024,105400.0,105390.0,0.58637037]
[1748995325933,0.05394024,105400.0,105390.0,0.59397037]
[1748995326597,0.05394024,105400.0,105390.0,0.59396841]
[1748995328317,0.05394024,105400.0,105390.0,0.59396827]
[1748995328546,0.05394024,105400.0,105390.0,0.59396929]
[1748995328751,0.05394024,105400.0,105390.0,0.60851014]
[1748995330438,0.05394024,105400.0,105390.0,0.60751014]
[1748995330683,0.05494024,105400.0,105390.0,0.61349236]
[1748995331449,0.05494024,105400.0,105390.0,0.61249236]
[1748995331450,0.05394024,105400.0,105390.0,0.61249236]
[1748995331679,0.05494024,105400.0,105390.0,0.61449236]
[1748995331903,0.05394024,105400.0,105390.0,0.60849236]
[1748995332355,0.05394024,105400.0,105390.0,0.61449236]
[1748995333687,0.05375047,105400.0,105390.0,0.61449236]
[1748995334377,0.05375047,105400.0,105390.0,0.66445275]
[1748995335125,0.05375047,105400.0,105390.0,1.42366625]
[1748995335364,0.01962547,105400.0,105390.0,1.41137589]
[1748995335614,0.01962547,105400.0,105390.0,1.41237589]
[1748995335873,0.01962547,105400.0,105390.0,1.44093953]
[1748995336140,0.01962547,105400.0,105390.0,1.84093953]
[1748995336611,0.01962547,105400.0,105390.0,1.83493953]
[1748995336853,0.02062547,105400.0,105390.0,1.89293953]
[1748995337592,0.03539279,105420.0,105410.0,0.03774085]
[1748995337823,0.03539279,105420.0,105410.0,0.48173275]
[1748995338312,0.03539279,105420.0,105410.0,0.51019575]
[1748995338793,0.03539279,105420.0,105410.0,0.91219575]
[1748995338794,0.03587448,105420.0,105410.0,0.91219575]
[1748995339048,0.03587448,105420.0,105410.0,1.25219575]
[1748995341847,0.03587448,105420.0,105410.0,1.25201178]
[1748995342345,0.03587448,105420.0,105410.0,0.91201178]
[1748995344045,0.03587448,105420.0,105410.0,2.99549878]
[1748995344267,0.03587448,105420.0,105410.0,2.96124742]
[1748995344486,0.03587448,105420.0,105410.0,5.07977642]
[1748995344742,0.03587448,105420.0,105410.0,5.07278542]
[1748995344979,0.03587448,105420.0,105410.0,1.98323342]
[1748995345222,0.00176012,105420.0,105410.0,1.85858542]
[1748995345470,0.00276012,105420.0,105410.0,1.86258542]
[1748995345704,0.00276012,105420.0,105410.0,1.98753742]
[1748995346164,0.00276012,105420.0,105410.0,1.79440342]
[1748995346396,0.00276012,105420.0,105410.0,1.47755042]
[1748995346602,0.00276012,105420.0,105410.0,1.76427578]
[1748995346823,0.00276012,105420.0,105410.0,1.65649178]
[1748995347049,0.00276012,105420.0,105410.0,1.76427578]
[1748995347749,0.11172395,105470.0,105440.0,0.01454085]
[1748995347967,0.00014446,105460.0,105450.0,1.02195515]
[1748995348186,0.00014446,105460.0,105450.0,1.03078878]
[1748995349509,0.00014446,105460.0,105450.0,1.0306302]
[1748995350389,0.00214446,105460.0,105450.0,1.0306302]
[1748995350815,0.02164446,105460.0,105450.0,1.0306302]
[1748995351239,0.00214446,105460.0,105450.0,1.0306302]
[1748995351456,0.00414446,105460.0,105450.0,1.0306302]
[1748995351878,0.01964446,105460.0,105450.0,1.0306302]
[1748995352087,0.01955705,105460.0,105450.0,1.0306302]
[1748995353387,0.01955705,105460.0,105450.0,1.03062816]
[1748995353836,0.03455705,105460.0,105450.0,1.03018816]
[1748995354062,0.03455705,105460.0,105450.0,1.02151515]
[1748995362674,0.03455705,105460.0,105450.0,0.72243515]
[1748995362904,0.03455705,105460.0,105450.0,1.02151515]
[1748995367792,0.01955705,105460.0,105450.0,1.02151515]
[1748995370042,0.03535705,105460.0,105450.0,1.02151515]
[1748995370905,0.03535705,105460.0,105450.0,0.62911515]
[1748995371117,0.03535705,105460.0,105450.0,1.02179515]
[1748995372622,0.01955705,105460.0,105450.0,1.02159515]
[1748995376699,0.03615705,105460.0,105450.0,1.02159515]
[1748995376915,0.03615705,105460.0,105450.0,1.02171515]
[1748995378904,0.03615705,105460.0,105450.0,1.02155515]
[1748995380706,0.03615705,105460.0,105450.0,0.72335515]
[1748995380927,0.03615705,105460.0,105450.0,1.02143515]
[1748995381379,0.01955705,105460.0,105450.0,1.02143515]
[1748995381604,0.00405705,105460.0,105450.0,1.02143515]
[1748995385266,0.00405705,105460.0,105450.0,1.03693515]
[1748995385510,0.00405705,105460.0,105450.0,1.02143515]
[1748995385747,0.00405705,105460.0,105450.0,1.10143515]
[1748995385983,0.00405705,105460.0,105450.0,1.12973282]
[1748995387580,0.00205705,105460.0,105450.0,1.12973282]
[1748995387818,5.705e-05,105460.0,105450.0,1.12973282]
[1748995390813,5.705e-05,105460.0,105450.0,1.46973282]
[1748995392789,0.01585705,105460.0,105450.0,1.47037282]
[1748995393224,0.03085705,105460.0,105450.0,1.47037282]
[1748995393437,0.03085705,105460.0,105450.0,1.17165282]
[1748995393669,0.03085705,105460.0,105450.0,1.47069282]
[1748995393919,0.03085705,105460.0,105450.0,1.04911515]
[1748995394146,0.03085705,105460.0,105450.0,0.70911515]
[1748995394369,0.03085705,105460.0,105450.0,0.7886943]
[1748995394594,0.03085705,105460.0,105450.0,1.0878543]
[1748995394813,0.03085705,105460.0,105450.0,0.7886943]
[1748995395030,0.03085705,105460.0,105450.0,1.0878143]
[1748995404990,0.03085705,105460.0,105450.0,1.0872143]
[1748995406806,0.01585705,105460.0,105450.0,1.10175515]
[1748995407460,5.705e-05,105460.0,105450.0,1.10175515]
[1748995407967,0.01565705,105460.0,105450.0,1.10175515]
[1748995408188,5.705e-05,105460.0,105450.0,1.10175515]
[1748995408646,0.01615705,105460.0,105450.0,1.10175515]
[1748995410037,0.03165705,105460.0,105450.0,1.10175515]
[1748995415238,0.03165705,105460.0,105450.0,0.70911515]
[1748995415469,0.03165705,105460.0,105450.0,1.10087515]
[1748995415699,0.03165705,105460.0,105450.0,0.80323515]
[1748995415924,0.03165705,105460.0,105450.0,1.10083515]
[1748995416409,0.03165705,105460.0,105450.0,0.7886943]
[1748995416634,0.03165705,105460.0,105450.0,1.0864543]
[1748995422465,0.03165705,105460.0,105450.0,0.7886943]
[1748995422683,0.03165705,105460.0,105450.0,1.0861343]
[1748995431175,0.03165705,105460.0,105450.0,0.8131343]
[1748995434811,5.705e-05,105460.0,105450.0,0.8131343]
[1748995438394,0.01545705,105460.0,105450.0,0.8131343]
[1748995438852,5.705e-05,105460.0,105450.0,0.8131343]
[1748995439073,5.705e-05,105460.0,105450.0,0.8286343]
[1748995439743,5.705e-05,105460.0,105450.0,0.8131343]
[1748995440845,5.705e-05,105460.0,105450.0,0.85827515]
[1748995441293,5.705e-05,105460.0,105450.0,0.84317515]
[1748995441743,5.705e-05,105460.0,105450.0,0.82767515]
[1748995442184,0.01645705,105460.0,105450.0,0.82767515]
[1748995442428,0.03295705,105460.0,105450.0,0.4215743]
[1748995442683,0.03295705,105460.0,105450.0,0.8111743]
[1748995443162,0.01645705,105460.0,105450.0,0.8111743]
[1748995447474,0.01645705,105460.0,105450.0,1.0841343]
[1748995450065,0.03275705,105460.0,105450.0,1.0841343]
[1748995451761,0.03275705,105460.0,105450.0,1.0838543]
[1748995459316,0.01645705,105460.0,105450.0,1.0838543]
[1748995462881,5.705e-05,105460.0,105450.0,1.11479515]
[1748995463814,5.705e-05,105460.0,105450.0,1.13039515]
[1748995464717,5.705e-05,105460.0,105450.0,0.83431515]
[1748995464947,5.705e-05,105460.0,105450.0,1.15835941]
[1748995470581,5.705e-05,105460.0,105450.0,0.86227941]
[1748995470835,5.705e-05,105460.0,105450.0,1.14239941]
[1748995471939,5.705e-05,105460.0,105450.0,1.15889941]
[1748995473019,5.705e-05,105460.0,105450.0,1.14239941]
[1748995473909,5.705e-05,105460.0,105450.0,1.15779941]
[1748995476198,5.705e-05,105460.0,105450.0,1.12599941]
[1748995477675,5.705e-05,105460.0,105450.0,1.14169941]
[1748995477932,5.705e-05,105460.0,105450.0,1.15689941]
[1748995488006,5.705e-05,105460.0,105450.0,1.14169941]
[1748995492261,0.02911705,105470.0,105460.0,0.01454085]
[1748995492486,0.02911705,105470.0,105460.0,0.11039515]
[1748995493762,0.03111705,105470.0,105460.0,0.11039515]
[1748995494192,0.03311705,105470.0,105460.0,0.11039515]
[1748995495073,0.004,105470.0,105460.0,0.12699515]
[1748995495291,0.004,105470.0,105460.0,0.12936518]
[1748995495509,0.004,105470.0,105460.0,0.11276518]
[1748995496169,0.0206,105470.0,105460.0,0.11276518]
[1748995496448,0.0186,105470.0,105460.0,0.11276518]
[1748995496653,0.0186,105470.0,105460.0,0.11376518]
[1748995496863,0.0328,105480.0,105460.0,0.11376518]
[1748995497076,0.0328,105480.0,105470.0,0.20468501]
[1748995497288,0.0328,105480.0,105470.0,0.20231515]
[1748995498619,0.0328,105480.0,105470.0,0.49639515]
[1748995499280,0.0328,105480.0,105470.0,0.74199515]
[1748995502754,0.0328,105480.0,105470.0,0.4333743]
[1748995503007,0.0328,105480.0,105470.0,0.3414543]
[1748995503225,0.0328,105480.0,105470.0,0.7272143]
[1748995503440,0.0328,105480.0,105470.0,0.4333743]
[1748995503663,0.0328,105480.0,105470.0,0.7272943]
[1748995503889,0.03042977,105480.0,105470.0,0.8072943]
[1748995506544,0.03042977,105480.0,105470.0,0.82183515]
[1748995509645,0.03042977,105480.0,105470.0,1.09475515]
[1748995510298,0.03042977,105480.0,105470.0,1.09487515]
[1748995525373,0.06653273,105490.0,105470.0,1.09487515]
[1748995526943,0.0159,105480.0,105470.0,1.09487515]
[1748995530350,0.031,105480.0,105470.0,1.09487515]
[1748995531505,0.0159,105480.0,105470.0,1.09487515]
[1748995534036,0.06663273,105490.0,105480.0,0.01454085]
[1748995534268,0.06663273,105490.0,105480.0,0.11276472]
[1748995534269,0.05163273,105490.0,105480.0,0.11276472]
[1748995535223,0.04477451,105490.0,105480.0,0.11276472]
[1748995535696,0.04277451,105490.0,105480.0,0.11039515]
[1748995536828,0.04277451,105490.0,105480.0,0.11989273]
[1748995538439,0.06966746,105500.0,105480.0,0.15406236]
[1748995538665,0.05460442,105500.0,105490.0,0.49459515]
[1748995538888,0.05460442,105500.0,105490.0,0.51009515]
[1748995539115,0.05460442,105500.0,105490.0,0.52639515]
[1748995540213,0.05460442,105500.0,105490.0,0.52939515]
[1748995541556,0.05460442,105500.0,105490.0,0.51609515]
[1748995542898,0.05460442,105500.0,105490.0,0.85609515]
[1748995543138,0.08569215,105510.0,105500.0,0.01454085]
[1748995543366,0.08569215,105510.0,105500.0,0.11276432]
[1748995544108,0.08569215,105510.0,105500.0,0.11039515]
[1748995544565,0.08569215,105510.0,105500.0,0.11139515]
[1748995544790,0.08569215,105510.0,105500.0,0.11339515]
[1748995545742,0.10119215,105510.0,105500.0,0.11339515]
[1748995546208,0.11769215,105510.0,105500.0,0.40619515]
[1748995552722,0.11769215,105510.0,105500.0,0.0988543]
[1748995552944,0.11769215,105510.0,105500.0,0.4818943]
[1748995555718,0.10119215,105510.0,105500.0,0.4818943]
[1748995555966,0.10119215,105510.0,105500.0,0.49643515]
[1748995556654,0.08569215,105510.0,105500.0,0.49643515]
[1748995558024,0.08569215,105510.0,105500.0,0.49507515]
[1748995558481,0.08569215,105510.0,105500.0,0.52687515]
[1748995559202,0.08569215,105510.0,105500.0,0.51127515]
[1748995560795,0.08569215,105510.0,105500.0,0.49507515]
[1748995562859,0.10179215,105510.0,105500.0,0.49507515]
[1748995563521,0.11819215,105510.0,105500.0,0.49507515]
[1748995565855,0.11819215,105510.0,105500.0,0.57507515]
[1748995567084,0.10179215,105510.0,105500.0,0.57507515]
[1748995567759,0.10179215,105510.0,105500.0,0.82059515]
[1748995567993,0.08569215,105510.0,105500.0,0.82059515]
[1748995568206,0.08569215,105510.0,105500.0,0.82055515]
[1748995572389,0.08569215,105510.0,105500.0,0.80103515]
[1748995572607,0.10149215,105510.0,105500.0,1.09335515]
[1748995572868,0.11689215,105510.0,105500.0,1.09335515]
[1748995574263,0.10169215,105510.0,105500.0,1.09335515]
[1748995574719,0.11669215,105510.0,105500.0,1.09335515]
[1748995575136,0.11669215,105510.0,105500.0,0.71035515]
[1748995575398,0.11669215,105510.0,105500.0,1.09299515]
[1748995576383,0.11669215,105510.0,105500.0,1.09199515]
[1748995576598,0.11669215,105510.0,105500.0,1.09499515]
[1748995578099,0.11669215,105510.0,105500.0,1.09299515]
[1748995578320,0.11669215,105510.0,105500.0,1.09499515]
[1748995584516,0.11669215,105510.0,105500.0,0.7881343]
[1748995584742,0.11669215,105510.0,105500.0,1.0804143]
[1748995585827,0.10169215,105510.0,105500.0,1.09495515]
[1748995586262,0.08569215,105510.0,105500.0,1.09495515]
[1748995586915,0.10159215,105510.0,105500.0,1.09495515]
[1748995587873,0.11689215,105510.0,105500.0,1.0804143]
[1748995590053,0.11689215,105510.0,105500.0,0.7881343]
[1748995590268,0.11689215,105510.0,105500.0,1.0804143]
[1748995592013,0.11689215,105510.0,105500.0,0.6978143]
[1748995592254,0.11689215,105510.0,105500.0,1.0804143]
[1748995593098,0.11689215,105510.0,105500.0,1.0774143]
[1748995593310,0.11689215,105510.0,105500.0,1.0784143]
[1748995593743,0.11689215,105510.0,105500.0,1.0764143]
[1748995594175,0.11689215,105510.0,105500.0,1.0774143]
[1748995594388,0.11689215,105510.0,105500.0,0.6948143]
[1748995594626,0.11689215,105510.0,105500.0,1.0774143]
[1748995594841,0.11689215,105510.0,105500.0,0.7851343]
[1748995595348,0.11689215,105510.0,105500.0,1.0774143]
[1748995595572,0.11689215,105510.0,105500.0,0.8046143]
[1748995596918,0.45689215,105510.0,105500.0,0.32552]
[1748995597144,0.45889215,105510.0,105500.0,0.41584]
[1748995597361,0.48734715,105510.0,105500.0,0.41584]
[1748995597806,0.49521651,105510.0,105500.0,0.41584]
[1748995598024,0.48534715,105510.0,105500.0,0.41584]
[1748995598241,0.48734715,105510.0,105500.0,0.41584]
[1748995598679,0.50508674,105510.0,105500.0,0.41584]
[1748995598896,0.50508673,105510.0,105500.0,0.41584]
[1748995599133,0.48734715,105510.0,105500.0,0.41584]
[1748995599349,0.50508674,105510.0,105500.0,0.41584]
[1748995599562,0.50708674,105510.0,105500.0,0.41584]
[1748995600036,0.48934715,105510.0,105500.0,0.41584]
[1748995601499,0.50708652,105510.0,105500.0,0.41584]
[1748995601763,0.50708643,105510.0,105500.0,0.70812]
[1748995601986,0.48934715,105510.0,105500.0,0.70812]
[1748995603086,0.48934715,105510.0,105500.0,0.70816]
[1748995603298,0.50708628,105510.0,105500.0,0.70816]
[1748995603517,0.48934715,105510.0,105500.0,0.70816]
[1748995605024,0.52482599,105510.0,105500.0,0.70816]
[1748995605237,0.50708657,105510.0,105500.0,0.70816]
[1748995607698,0.52482618,105510.0,105500.0,0.70816]
[1748995607911,0.50708657,105510.0,105500.0,0.70816]
[1748995608117,0.52482556,105510.0,105500.0,0.70816]
[1748995608339,0.50708657,105510.0,105500.0,0.62816]
[1748995608550,0.52482073,105510.0,105500.0,0.62816]
[1748995608751,0.50708657,105510.0,105500.0,0.62816]
[1748995609389,0.52481982,105510.0,105500.0,0.62816]
[1748995609596,0.50708657,105510.0,105500.0,0.62816]
[1748995609879,0.52481978,105510.0,105500.0,0.62816]
[1748995610098,0.50708657,105510.0,105500.0,0.62816]
[1748995610306,0.52481967,105510.0,105500.0,0.62816]
[1748995610462,0.52481966,105510.0,105500.0,0.62816]
[1748995610663,0.50708657,105510.0,105500.0,0.62816]
[1748995612041,0.52481949,105510.0,105500.0,0.62816]
[1748995612238,0.50708657,105510.0,105500.0,0.62816]
[1748995612438,0.5248195,105510.0,105500.0,0.62816]